Cogmind - Beta 17 @@@ ROGUE MODE // 2026.08.06 @ 20:59:06 Player: Cereal Killer Result: Destroyed by KU-HL4(z) with Zionite Laser-S Performance ------------- Evolutions (3) 1500 Regions Visited (12) 2400 Robots Destroyed (113) 565 Value Destroyed (4118) 4118 Prototype IDs (12) 240 Alien Tech Used (0) 0 Bonus (9554) 9554 TOTAL SCORE: 18377 Bonus ------- High Alert Combat Kills 89 Follower Combat Kills 215 Prayed to X0-1V1 5000 Major X0-1V1 Interference 3150 Entered Garrisons 200 Met Imprinter 300 Was Imprinted 300 Acquired ECA 300 Cogmind --------- Core Integrity 0/455 Matter 258/300 Energy 668/1300 System Corruption 0% Temperature Cool (9) Movement Rolling (85) Ox1 Location -7/Deep Caves Parts ------- > --- POWER (1) -------- (None) > --- PROPULSION (4) --- Wheel > --- UTILITY (6) ------ Medium Storage Unit Improved Signal Interpreter Microactuators X0-1V1's Piety Tracker > --- WEAPON (2) ------- Makeshift Hammer > --- INVENTORY (10) --- Neutrino Core Encrypted Comm Array Tactical Coordination Suite Skeleton Box Phasing AFG Peak State ------------ > --- POWER ------------ Light Fission Core > --- PROPULSION ------- Wheel Wheel Armored Huge Wheel > --- UTILITY ---------- Medium Storage Unit Rocket Booster Improved Signal Interpreter Advanced Melee Analysis Suite Phasing AFG X0-1V1's Piety Tracker > --- WEAPON ----------- Enhanced Autogun Spear > --- INVENTORY -------- Neutrino Core Wheel Encrypted Comm Array Microactuators Improved Medium Armor Plating Improved Shield Generator Skeleton Box Heavy Plasma Cannon Shock Bomb Launcher Makeshift Hammer [Rating: 66] Favorites ----------- Power Improved Ion Engine Engine Improved Ion Engine Power Core Light Fission Core Propulsion Wheel Wheel Wheel Hover Unit Combat Airjet Utility X0-1V1's Piety Tracker Device X0-1V1's Piety Tracker Storage Medium Storage Unit Processor Improved Signal Interpreter Protection Reactive Plating Weapon Spear Energy Gun Gatling Laser Energy Cannon Beam Cannon Ballistic Gun Enhanced Autogun Ballistic Cannon Light Cannon Launcher Missile Launcher Impact Weapon Powered Hammer Piercing Weapon Spear Build | -11 -10 -10 -10 -9 -8 -8 -8 -7 -7 -7 -7 -7 ------- Run | Yrd Mat Min Exi Min Mat Gar Mat Fac Low Low Zio Dee Slots Evolved 6 | . . . . . 4 . . 2 . . . . Power . | . . . . . . . . . . . . . Propulsion 2 | . . . . . 1 . . 1 . . . . Utility 4 | . . . . . 3 . . 1 . . . . Weapon . | . . . . . . . . . . . . . Parts Attached 85 | 8 11 2 1 . 32 3 3 13 2 2 4 4 Power 8 | 2 1 . 1 . 3 . . 1 . . . . Engine 6 | 2 1 . 1 . 2 . . . . . . . Core 2 | . . . . . 1 . . 1 . . . . Reactor . | . . . . . . . . . . . . . Propulsion 23 | 2 2 2 . . 5 . 1 8 . 2 . 1 Treads . | . . . . . . . . . . . . . Leg . | . . . . . . . . . . . . . Wheel 20 | 2 2 2 . . 2 . 1 8 . 2 . 1 Hover 3 | . . . . . 3 . . . . . . . Flight . | . . . . . . . . . . . . . Utility 27 | 1 3 . . . 11 2 1 3 1 . 3 2 Device 14 | . 2 . . . 4 . 1 1 1 . 3 2 Storage 3 | 1 1 . . . 1 . . . . . . . Processor 2 | . . . . . 1 . . 1 . . . . Hackware . | . . . . . . . . . . . . . Protection 8 | . . . . . 5 2 . 1 . . . . Artifact . | . . . . . . . . . . . . . Weapon 27 | 3 5 . . . 13 1 1 1 1 . 1 1 Energy Gun 7 | 2 2 . . . 2 . 1 . . . . . Energy Cannon 2 | . 1 . . . . . . 1 . . . . Ballistic Gun 7 | 1 . . . . 6 . . . . . . . Ballistic Cannon 3 | . 1 . . . 1 . . . . . 1 . Launcher 4 | . 1 . . . 2 . . . 1 . . . Special Weapon . | . . . . . . . . . . . . . Impact Weapon 2 | . . . . . . 1 . . . . . 1 Slashing Weapon . | . . . . . . . . . . . . . Piercing Weapon 2 | . . . . . 2 . . . . . . . Special Melee Weapon . | . . . . . . . . . . . . . Unidentified Prototypes 7 | . 1 . . . 5 . . . . . 1 . Parts Lost 34 | . 1 3 . 1 11 . . 4 . 3 . 11 Power 4 | . . . . . 2 . . 1 . . . 1 Propulsion 14 | . . 3 . . 2 . . 3 . 3 . 3 Utility 7 | . . . . . 3 . . . . . . 4 Weapon 9 | . 1 . . 1 4 . . . . . . 3 Highest Loss Streak 11 | . 1 1 . 1 8 . . 2 . 2 . 11 To Critical Strikes . | . . . . . . . . . . . . . Average Backups 11 | 3 16 18 14 11 8 9 9 9 9 9 9 9 Power 1 | . 2 4 2 1 1 1 1 . . . 1 1 Propulsion 1 | 2 5 4 6 5 . . . 1 2 1 1 1 Utility 3 | . 1 4 4 4 2 3 5 4 3 2 3 3 Weapon 4 | . 6 5 1 1 4 5 3 2 3 3 2 2 Tool/Special . | . . . . . . . . . . . . . Unused Backups 33 | . 2 5 5 . 6 4 2 5 . 3 . 1 Power 4 | . . . 1 . 1 1 . . . . . 1 Propulsion 11 | . . 2 3 . 2 . . 2 . 2 . . Utility 8 | . . 1 1 . . 1 1 3 . 1 . . Weapon 10 | . 2 2 . . 3 2 1 . . . . . Tool/Special . | . . . . . . . . . . . . . Average Slot Usage (%) 96 | . 98 93 100 100 92 99 99 98 100 95 92 77 Engine 8 | . 14 14 14 14 7 9 8 4 . . . . Core 1 | . . . . . . . . 2 7 7 7 4 Wheel 19 | . 27 22 28 28 2 18 25 28 30 25 23 16 Hover 6 | . . . . . 22 9 1 . . . . . Device 13 | . 9 14 14 14 18 9 15 13 15 15 16 16 Storage 10 | . 18 14 14 14 9 9 9 6 7 7 7 7 Processor 7 | . . . . . 5 9 9 13 15 15 15 12 Protection 7 | . . . . . 8 17 11 9 7 7 5 3 Energy Gun 4 | . 10 13 5 . . 9 8 . . . . . Energy Cannon 1 | . 2 . 8 14 2 . . 2 . . . . Ballistic Gun 4 | . 6 . . . 7 . 4 7 7 7 1 . Ballistic Cannon 3 | . 6 14 14 14 1 . . . . . 5 5 Piercing Weapon 3 | . . . . . 4 5 5 4 6 7 7 5 Peak Build Rating 66 | 6 21 25 27 29 62 44 44 51 51 57 66 60 Average Rating 39 | 3 9 22 26 27 52 43 40 47 49 54 58 52 On Entrance 34 | . 6 21 25 27 28 43 44 39 50 50 57 60 Avg Prop Armor Cover (%) 1 | . . . . . 1 1 2 . . . . . Naked Turns . | . . . . . . . . . . . . . Heaviest Build 56 | 14 54 52 56 56 42 45 44 48 34 34 40 40 Greatest Support 52 | 26 26 20 20 20 36 20 30 52 40 48 48 48 Greatest Overweight (x) 5 | . 3 5 2 2 3 2 2 1 . 1 . 1 Average Overweight (x) . | . 1 2 2 2 . 1 1 . . . . . Largest Inventory Capacity 20 | 8 20 20 20 20 20 10 10 10 10 10 10 10 Average Capacity 12 | 6 19 20 20 20 10 10 10 9 10 10 10 10 Most Carried 20 | 6 20 20 20 19 18 10 10 10 10 10 10 10 Average Carried 11 | 4 16 19 15 15 8 9 9 9 9 9 9 9 Final Capacity 20 | 8 20 20 20 20 10 10 10 10 10 10 10 10 Final Carried 20 | 6 20 20 12 19 9 10 10 10 10 10 10 5 Class Distribution -------------------- 58% | Mutant 27% | Scavenger-Mutant 13% | Commander-Mutant Dominant Class ---------------- Mutant | -10/Materials Mutant | -10/Mines Mutant | -10/Exiles Mutant | -9/Mines Scavenger-Mutant | -8/Materials Mutant | -8/Garrison Commander-Mutant | -8/Materials Scavenger-Mutant | -7/Factory Scavenger-Mutant | -7/Lower Caves Mutant | -7/Lower Caves Mutant | -7/Zion Mutant | -7/Deep Caves Resources | -11 -10 -10 -10 -9 -8 -8 -8 -7 -7 -7 -7 -7 ----------- Run | Yrd Mat Min Exi Min Mat Gar Mat Fac Low Low Zio Dee Matter Collected 3020 | 219 383 238 . 30 804 156 462 288 . 440 . . Remotely . | . . . . . . . . . . . . . Salvage Created 3887 | . 777 75 . . 1227 77 435 963 286 47 . . Parts 221 | . 42 6 . . 81 3 24 56 7 2 . . Haulers Intercepted 8 | . 2 . . . 5 . 1 . . . . . Recyclers Shooed 3 | . . . . . 1 . . 2 . . . . Parts Field Recycled . | . . . . . . . . . . . . . Retrieved Matter . | . . . . . . . . . . . . . Parts Self-Destructed 10 | . . . . . . . . . 2 8 . . Prevented 3 | . . . . . . . . . 3 . . . Parts Restored . | . . . . . . . . . . . . . Kills | -11 -10 -10 -10 -9 -8 -8 -8 -7 -7 -7 -7 -7 ------- Run | Yrd Mat Min Exi Min Mat Gar Mat Fac Low Low Zio Dee Combat Hostiles Destroyed 64 | . 13 4 . . 28 . 4 9 5 1 . . Melee 10 | . . . . . 8 . . 2 . . . . Guns 24 | . 7 3 . . 6 . 4 2 1 1 . . Cannons 17 | . 6 1 . . 5 . . 5 . . . . AOE 11 | . . . . . 8 . . . 3 . . . Classes Destroyed 16 | . 7 2 . . 3 . 1 2 1 . . . Worker 14 | . 1 . . . 1 . 1 11 . . . . Builder 7 | . 1 . . . 2 . 1 3 . . . . Tunneler 3 | . 2 . . . 1 . . . . . . . Hauler 8 | . 2 . . . 5 . 1 . . . . . Recycler 5 | . 1 . . . . . 2 2 . . . . Minesweeper 1 | . . . . . . . . . 1 . . . Mechanic 1 | . . . . . . . . 1 . . . . Operator 2 | . . . . . . . 1 1 . . . . Watcher 9 | . 2 . . . 4 . . 3 . . . . Swarmer 17 | . . 1 . . 11 . . 2 2 1 . . Cutter 2 | . . . . . 2 . . . . . . . Grunt 26 | . 13 2 . . 5 . . 4 2 . . . Sentry 14 | . . . . . 8 . 4 1 1 . . . Hunter 2 | . . . . . 2 . . . . . . . Programmer 2 | . . . . . . . . 2 . . . . Decomposer 1 | . . . . . . . . . . 1 . . Assembled 1 | . . 1 . . . . . . . . . . Best Kill Streak 11 | . 4 2 . . 6 . 3 11 5 1 . . Combat Bots Only 6 | . 3 2 . . 6 . 2 4 5 1 . . Max Kills in Single Turn 4 | . 2 1 . . 4 . 1 1 2 1 . . Gunslinging . | . . . . . . . . . . . . . Exploded 4 | . . . . . 4 . . . 1 . . . Melee 1 | . . . . . 1 . . 1 . . . . Uniques/NPCs Destroyed . | . . . . . . . . . . . . . Combat | -11 -10 -10 -10 -9 -8 -8 -8 -7 -7 -7 -7 -7 -------- Run | Yrd Mat Min Exi Min Mat Gar Mat Fac Low Low Zio Dee Hostile Shots Fired 462 | . 44 28 . 8 160 . 13 58 48 40 . 63 Missed 148 | . 11 8 . 1 55 . 7 16 24 9 . 17 Hits 314 | . 33 20 . 7 105 . 6 42 24 31 . 46 Melee 5 | . . . . . 5 . . . . . . . Projectile 309 | . 33 20 . 7 100 . 6 42 24 31 . 46 AOE 2 | . . . . . 1 . . 1 . . . . Critical Strikes 14 | . 1 1 . . 10 . 1 1 . . . . Damage Taken 5444 | . 420 247 . 58 2076 . 201 521 197 371 . 1353 Core 904 | . 80 71 . 7 240 . 28 69 18 39 . 352 Absorbed by Shields 97 | . . . . . . . . 6 . . . 91 Ignored by Resistances 164 | . . . . . 132 . 11 21 . . . . Regen/Repaired (Parts) 218 | . . . . . . . . 218 . . . . Core Remaining (%) 84 | 100 . . . 62 . . 90 . . . . . Volleys Fired 158 | . 50 17 . . 39 . 11 27 9 1 . 4 Largest 2 | . 2 2 . . 2 . 2 2 2 1 . 2 Hottest 138 | . 90 80 . . 97 . 105 115 61 25 . 138 Shots Fired 296 | . 98 34 . . 75 3 20 43 17 1 . 5 Gun 173 | . 65 17 . . 31 3 20 27 9 1 . . Cannon 99 | . 31 17 . . 30 . . 16 . . . 5 Launcher 24 | . 2 . . . 14 . . . 8 . . . Special . | . . . . . . . . . . . . . Kinetic 160 | . 48 17 . . 46 . 11 27 9 1 . 1 Thermal 112 | . 48 17 . . 15 3 9 16 . . . 4 Explosive 16 | . 2 . . . 14 . . . . . . . Electromagnetic 8 | . . . . . . . . . 8 . . . Robot Hit Streak 23 | . 10 5 . . 11 3 11 23 7 8 . 1 Robot Miss Streak 5 | . 3 5 . . 4 1 2 2 2 . . 2 Penetration Max . | . . . . . . . . . . . . . Secondary Targets 2 | . . . . . 2 . . . . . . . Max Gunslinging Chain 1 | . . . . . 1 . . . . . . . Shots Hit Robots 285 | . 59 17 . . 80 4 20 75 16 6 . 8 Core Hits 157 | . 34 6 . . 57 4 13 31 8 1 . 3 Critical Kills 2 | . . . . . 1 1 . . . . . . Critical Parts Destroyed 1 | . . . . . . . . . . . . 1 Critical Strikes 19 | . 4 2 . . 5 1 . 5 1 . . 1 Burn 5 | . 3 2 . . . . . . . . . . Meltdown 1 | . . . . . 1 . . . . . . . Blast 1 | . 1 . . . . . . . . . . . Smash 2 | . . . . . . 1 . . . . . 1 Impale 10 | . . . . . 4 . . 5 1 . . . Melee Attacks 122 | . . . . . 36 18 7 45 2 5 . 9 Impact 9 | . . . . . . 8 . . . . . 1 Slashing . | . . . . . . . . . . . . . Piercing 113 | . . . . . 36 10 7 45 2 5 . 8 Sneak Attacks 37 | . . . . . 7 . 5 22 1 2 . . Combat Hostiles 2 | . . . . . . . . 1 . 1 . . Follow-up Attacks . | . . . . . . . . . . . . . Damage Inflicted 9135 | . 860 270 . . 3330 226 631 2814 488 246 . 270 Guns 1892 | . 543 88 . . 399 43 297 384 119 19 . . Cannons 1376 | . 317 182 . . 383 . . 428 . . . 66 Explosions 1697 | . . . . . 1440 . . . 257 . . . Melee 4170 | . . . . . 1108 183 334 2002 112 227 . 204 Ramming . | . . . . . . . . . . . . . Kinetic 1920 | . 495 182 . . 590 . 131 384 119 19 . . Thermal 1348 | . 365 88 . . 192 43 166 428 . . . 66 Explosive 1440 | . . . . . 1440 . . . . . . . Electromagnetic 257 | . . . . . . . . . 257 . . . Impact 199 | . . . . . . 138 . . . . . 61 Slashing . | . . . . . . . . . . . . . Piercing 3971 | . . . . . 1108 45 334 2002 112 227 . 143 Highest Corruption 18 | . . 2 . . 18 18 1 . . 14 . . Average Corruption 12 | . . 2 . . 17 18 1 . . 14 . . Corruption Purged . | . . . . . . . . . . . . . Corruption Blocked . | . . . . . . . . . . . . . Effects 49 | . . 4 . . 4 37 1 . . 3 . . Message Errors 17 | . . . . . 1 14 1 . . 1 . . Matter Fused 7 | . . 1 . . . 6 . . . . . . Heat Flow Errors 8 | . . 1 . . . 7 . . . . . . Energy Discharges 6 | . . . . . 2 3 . . . 1 . . Data Loss (minor) 6 | . . 2 . . 1 2 . . . 1 . . Data Loss (major) 1 | . . . . . . 1 . . . . . . Misfires 3 | . . . . . . 3 . . . . . . Alerts 1 | . . . . . . 1 . . . . . . Overload Shots . | . . . . . . . . . . . . . Overflow Damage 858 | . . . . . 114 . 102 398 134 49 . 61 Projectiles 42 | . . . . . 19 . . 23 . . . . Explosions 74 | . . . . . 74 . . . . . . . Melee 742 | . . . . . 21 . 102 375 134 49 . 61 Knockbacks 7 | . 1 4 . . 1 . . . . . . 1 Impact 1 | . . . . . . . . . . . . 1 Kinetic 6 | . 1 4 . . 1 . . . . . . . Secondary . | . . . . . . . . . . . . . Self-Inflicted Damage 55 | . . . . . 55 . . . . . . . Shots 1 | . . . . . 1 . . . . . . . Rammed . | . . . . . . . . . . . . . Targets Rammed . | . . . . . . . . . . . . . Kicked . | . . . . . . . . . . . . . Crushed . | . . . . . . . . . . . . . Highest Temperature 417 | . 196 355 . . 417 241 81 207 . . . 96 Average Temperature 77 | . 62 87 . . 90 92 36 105 . . . 40 Received Heat Transfer 1461 | . 261 63 . . 369 . 45 246 39 57 . 381 Effects 3 | . . 1 . . 2 . . . . . . . Interference 2 | . . . . . 2 . . . . . . . Damage (minor) 1 | . . 1 . . . . . . . . . . Siege Activations . | . . . . . . . . . . . . . Martial Activations . | . . . . . . . . . . . . . Shielding Activations . | . . . . . . . . . . . . . Robots Disrupted . | . . . . . . . . . . . . . Combat Hostiles . | . . . . . . . . . . . . . Robots Corrupted 1 | . . . . . . . . . 1 . . . Combat Hostiles 1 | . . . . . . . . . 1 . . . Parts Fried 2 | . . . . . . . . . 2 . . . Impact Corruptions 1 | . . . . . . . . . . . . 1 Robots Melted 1 | . . . . . 1 . . . . . . . Combat Hostiles 1 | . . . . . 1 . . . . . . . Parts Melted 5 | . 2 . . . 1 . . 2 . . . . Heat Transferred 3221 | . 1258 407 . . 407 100 375 650 . . . 24 Parts Sabotaged . | . . . . . . . . . . . . . Parts Stolen . | . . . . . . . . . . . . . Parts Stripped . | . . . . . . . . . . . . . Power Chain Reactions . | . . . . . . . . . . . . . Alert | -11 -10 -10 -10 -9 -8 -8 -8 -7 -7 -7 -7 -7 ------- Run | Yrd Mat Min Exi Min Mat Gar Mat Fac Low Low Zio Dee Maximum Alert Level 3 | . . . . . 2 3 3 1 . . . . Low Security (%) 43 | 100 100 100 . 100 52 . . . . . . . Level 1 31 | . . . . . 41 33 . 100 . . . . Level 2 12 | . . . . . 5 23 67 . . . . . Level 3 12 | . . . . . . 43 32 . . . . . Level 4 . | . . . . . . . . . . . . . Level 5 . | . . . . . . . . . . . . . High Security . | . . . . . . . . . . . . . Max Security . | . . . . . . . . . . . . . Peak Influence 1044 | . 139 69 . . 557 1044 836 386 . . . . Initial 508 | . . 49 . . . 206 508 364 . . . . Average 290 | . 43 20 . . 208 592 656 301 . . . . Influence Increases 3597 | . 418 100 . . 1088 838 492 452 105 104 . . Destroy 0b10 Robot/C 1420 | . 260 60 . . 560 . 200 200 100 40 . . Destroy 0b10 Robot/NC 265 | . 45 . . . 65 5 35 110 5 . . . Destroy Leader 378 | . 58 10 . . 158 . 74 68 . 10 . . Allied During Kill 177 | . . . . . . 2 136 30 . 9 . . Trap Triggered on 0b10 20 | . . . . . 20 . . . . . . . Successful Hack 87 | . 12 . . . 36 14 15 10 . . . . Disable Machine 135 | . . . . . 75 15 30 15 . . . . Anti-Garrison Action 800 | . . . . . . 800 . . . . . . Destroy Structure 60 | . 13 . . . 39 2 2 4 . . . . Partial Spotted 45 | . . . . . 30 . . 15 . . . . Lose Combat Pursuer 210 | . 30 30 . . 105 . . . . 45 . . Influence Decreases 3597 | . 291 227 . . 770 112 734 932 190 256 85 . Entered New Map 1415 | . . 78 . . . 112 536 438 120 46 85 . Time Decay 1552 | . 281 139 . . 470 . 198 294 70 100 . . Lost Part 200 | . 10 10 . . 110 . . 40 . 30 . . Lost Ally 430 | . . . . . 190 . . 160 . 80 . . Squads Dispatched 20 | . 2 . . 1 10 . 3 4 . . . . Investigation 7 | . 1 . . 1 3 . . 2 . . . . Extermination 2 | . . . . . . . . 2 . . . . Reinforcement 11 | . 1 . . . 7 . 3 . . . . . Assault . | . . . . . . . . . . . . . Garrison . | . . . . . . . . . . . . . Intercept . | . . . . . . . . . . . . . Searches Triggered . | . . . . . . . . . . . . . Construction Impeded 1 | . . . . . 1 . . . . . . . Haulers Reinforced . | . . . . . . . . . . . . . Active Scanning Responses . | . . . . . . . . . . . . . Cargo Convoy Interrupts . | . . . . . . . . . . . . . Stealth | -11 -10 -10 -10 -9 -8 -8 -8 -7 -7 -7 -7 -7 --------- Run | Yrd Mat Min Exi Min Mat Gar Mat Fac Low Low Zio Dee Distress Signals 8 | . 2 . . . 4 . 1 1 . . . . Communications Jammed . | . . . . . . . . . . . . . Distress Signals . | . . . . . . . . . . . . . Times Spotted 142 | . 21 16 . 4 54 . 10 17 5 12 . 3 Peak Tracking Total 9 | . 3 7 . 4 9 . 4 3 5 5 . 3 Tactical Retreats 11 | . 2 2 . . 5 . . . . 2 . . Traps | -11 -10 -10 -10 -9 -8 -8 -8 -7 -7 -7 -7 -7 ------- Run | Yrd Mat Min Exi Min Mat Gar Mat Fac Low Low Zio Dee Traps Triggered 9 | . 3 . . . . 2 3 1 . . . . Indirectly . | . . . . . . . . . . . . . Trap Hack Attempts . | . . . . . . . . . . . . . Triggered . | . . . . . . . . . . . . . Disarmed . | . . . . . . . . . . . . . Reprogrammed . | . . . . . . . . . . . . . Reused 2 | . . . . . 2 . . . . . . . Traps Extracted . | . . . . . . . . . . . . . Installed 2 | . . . . . 2 . . . . . . . Triggered 2 | . . . . . 2 . . . . . . . Most Traps Carried 3 | . . . . 3 3 . . . . . . . Machines | -11 -10 -10 -10 -9 -8 -8 -8 -7 -7 -7 -7 -7 ---------- Run | Yrd Mat Min Exi Min Mat Gar Mat Fac Low Low Zio Dee Machines Disabled 16 | . . . . . 5 8 2 1 . . . . Max in Single Turn 2 | . . . . . 2 1 1 1 . . . . Garrison Relay 7 | . . . . . . 7 . . . . . . Phase Generator 1 | . . . . . . 1 . . . . . . Machines Repaired . | . . . . . . . . . . . . . Machines Dismantled . | . . . . . . . . . . . . . Machines Sabotaged . | . . . . . . . . . . . . . Overloaded Fab Kills . | . . . . . . . . . . . . . Hacking | -11 -10 -10 -10 -9 -8 -8 -8 -7 -7 -7 -7 -7 --------- Run | Yrd Mat Min Exi Min Mat Gar Mat Fac Low Low Zio Dee Machines Accessed 30 | . 6 1 1 1 11 2 4 4 . . . . Terminals 21 | . 6 . . . 8 2 3 2 . . . . Fabricators 1 | . . . . . . . . 1 . . . . Repair Stations 1 | . . . . . . . . 1 . . . . Recycling Units . | . . . . . . . . . . . . . Scanalyzers 3 | . . . . . 2 . 1 . . . . . Garrison Access 1 | . . . . . 1 . . . . . . . Total Hacks 78 | . 10 1 4 1 32 4 15 11 . . . . Successful 41 | . 5 1 4 1 15 1 10 4 . . . . Failed 36 | . 5 . . . 16 3 5 7 . . . . Catastrophic 6 | . 1 . . . 1 1 1 2 . . . . Database Lockouts 1 | . . . . . 1 . . . . . . . Manual 27 | . 8 . . . 13 . 3 3 . . . . Terminals 46 | . 10 . . . 23 4 5 4 . . . . Fabricators 4 | . . . . . . . . 4 . . . . Repair Stations 3 | . . . . . . . . 3 . . . . Recycling Units . | . . . . . . . . . . . . . Scanalyzers 16 | . . . . . 6 . 10 . . . . . Garrison Access 3 | . . . . . 3 . . . . . . . Terminal Hacks 15 | . 3 1 4 1 3 1 1 1 . . . . Record 4 | . . . 4 . . . . . . . . . Prototype ID Bank 2 | . 1 . . . 1 . . . . . . . Open Door 2 | . . 1 . 1 . . . . . . . . Branch Access Points 1 | . . . . . . . . 1 . . . . Scanalyzer Index 1 | . . . . . . . 1 . . . . . Locate Traps 3 | . 2 . . . 1 . . . . . . . Investigation Status 1 | . . . . . 1 . . . . . . . Patrol Navigation 1 | . . . . . . 1 . . . . . . Fabricator Hacks 1 | . . . . . . . . 1 . . . . Network Status 1 | . . . . . . . . 1 . . . . Repair Station Hacks 2 | . . . . . . . . 2 . . . . Scan Component 1 | . . . . . . . . 1 . . . . Repair 1 | . . . . . . . . 1 . . . . Recycling Unit Hacks . | . . . . . . . . . . . . . Scanalyzer 12 | . . . . . 4 . 8 . . . . . Insert Component 4 | . . . . . 2 . 2 . . . . . Analyze 5 | . . . . . 1 . 4 . . . . . Retrieve Study 3 | . . . . . 1 . 2 . . . . . Garrison Access Hacks 1 | . . . . . 1 . . . . . . . Unlock Access 1 | . . . . . 1 . . . . . . . Unauthorized Hacks 10 | . 2 . . . 7 . 1 . . . . . Terminals 10 | . 2 . . . 7 . 1 . . . . . Track 1 | . . . . . 1 . . . . . . . Assimilate 2 | . . . . . 1 . 1 . . . . . Botnet 5 | . 2 . . . 3 . . . . . . . Disrupt 1 | . . . . . 1 . . . . . . . Operators 1 | . . . . . 1 . . . . . . . Fabricators . | . . . . . . . . . . . . . Repair Stations . | . . . . . . . . . . . . . Recycling Units . | . . . . . . . . . . . . . Scanalyzers . | . . . . . . . . . . . . . Garrison Access . | . . . . . . . . . . . . . Data Cores Recovered . | . . . . . . . . . . . . . Used . | . . . . . . . . . . . . . Hacking Detections 21 | . 4 . . . 9 1 3 4 . . . . Full Trace Events 7 | . . . . . 3 1 1 2 . . . . Feedback Events 1 | . . . . . . . 1 . . . . . Corruption 1 | . . . . . . . 1 . . . . . Feedback Blocked . | . . . . . . . . . . . . . Robot Schematics Acquired 3 | . . . . . . . . . . . 3 . Robots Built . | . . . . . . . . . . . . . Authchips . | . . . . . . . . . . . . . Time . | . . . . . . . . . . . . . Total Robot Build Rating . | . . . . . . . . . . . . . Part Schematics Acquired 17 | . . . . . 1 . 1 . . . 15 . Parts Built . | . . . . . . . . . . . . . Authchips . | . . . . . . . . . . . . . Time . | . . . . . . . . . . . . . Total Part Build Rating . | . . . . . . . . . . . . . Part Studies Acquired 3 | . . . . . 1 . 2 . . . . . Parts Repaired 1 | . . . . . . . . 1 . . . . Time 26 | . . . . . . . . 26 . . . . Parts Recycled . | . . . . . . . . . . . . . Recycled Matter . | . . . . . . . . . . . . . Retrieved Matter . | . . . . . . . . . . . . . Retrieved Components . | . . . . . . . . . . . . . Parts Scanalyzed 3 | . . . . . 1 . 2 . . . . . Part Schematics Acquired 2 | . . . . . 1 . 1 . . . . . Parts Damaged . | . . . . . . . . . . . . . Bothacking | -11 -10 -10 -10 -9 -8 -8 -8 -7 -7 -7 -7 -7 ------------ Run | Yrd Mat Min Exi Min Mat Gar Mat Fac Low Low Zio Dee Used RIF Installer . | . . . . . . . . . . . . . Robots Hacked . | . . . . . . . . . . . . . Non-combat . | . . . . . . . . . . . . . Combat . | . . . . . . . . . . . . . Robot Hacks Applied . | . . . . . . . . . . . . . Relay Couplers Released 28 | . . . . . . 28 . . . . . . Machine Destruction 28 | . . . . . . 28 . . . . . . Fabnet Peak Effective % . | . . . . . . . . . . . . . Robots Rewired 8 | . . . . . . 8 . . . . . . Allies Hacked . | . . . . . . . . . . . . . Hacks Repelled . | . . . . . . . . . . . . . Allies | -11 -10 -10 -10 -9 -8 -8 -8 -7 -7 -7 -7 -7 -------- Run | Yrd Mat Min Exi Min Mat Gar Mat Fac Low Low Zio Dee Total Allies 23 | . . 2 . . 1 8 . 4 . 4 4 . Largest Group 8 | . . 2 . . 1 8 8 4 . 4 4 . Highest-Rated Group 165 | . . 45 . . 10 159 159 160 . 48 165 . Highest-Rated Ally 42 | . . 31 . . 10 31 31 40 . 12 42 . Initial Warlord ECA Mod 12 | . . . . . . . 12 11 11 11 11 . Total Orders . | . . . . . . . . . . . . . Ally Attacks 80 | . . 11 . . 16 . 22 14 . 17 . . Total Damage 939 | . . 125 . . . . 412 215 . 187 . . Kills 14 | . . 4 . . . . 7 2 . 1 . . Allies Corrupted . | . . . . . . . . . . . . . Allies Melted . | . . . . . . . . . . . . . X0-1V1 Amusement Gains 163 | . 3 20 . . 65 . 5 . . . . 70 Good Acts 42 | . . 4 . . 4 7 4 11 4 8 . . Bad Acts 21 | . . 2 . 1 12 2 2 . . 2 . . Intel | -11 -10 -10 -10 -9 -8 -8 -8 -7 -7 -7 -7 -7 ------- Run | Yrd Mat Min Exi Min Mat Gar Mat Fac Low Low Zio Dee Active Infowar (turns) 1616 | . 429 . . . 809 . 280 98 . . . . Sensors 1187 | . . . . . 809 . 280 98 . . . . Structural 429 | . 429 . . . . . . . . . . . Robot Analysis Total . | . . . . . . . . . . . . . Derelict Logs Recovered 9 | . . 1 . 1 . . . . 1 3 3 . Drone Launches 16 | . . . . . 16 . . . . . . . Drone Recoveries . | . . . . . . . . . . . . . Exploration | -11 -10 -10 -10 -9 -8 -8 -8 -7 -7 -7 -7 -7 ------------- Run | Yrd Mat Min Exi Min Mat Gar Mat Fac Low Low Zio Dee Turns Passed 6210 | 58 832 488 235 144 1324 1160 405 643 155 207 469 90 Spaces Moved 5926 | 43 542 332 206 121 1099 875 350 722 289 388 876 83 Core 9 | 9 . . . . . . . . . . . . Treads . | . . . . . . . . . . . . . Legs . | . . . . . . . . . . . . . Wheels 5043 | 34 542 332 206 121 225 875 350 722 289 388 876 83 Hover 874 | . . . . . 874 . . . . . . . Flight . | . . . . . . . . . . . . . Fastest Speed 40 | 50 90 110 110 110 74 95 80 40 40 40 45 45 Average Speed 80 | 84 110 123 110 110 90 109 92 53 40 43 45 46 Slowest Speed 220 | 100 145 155 110 110 220 110 110 95 40 85 45 115 Overloaded Moves . | . . . . . . . . . . . . . Propulsion Burnouts . | . . . . . . . . . . . . . Robots Hopped . | . . . . . . . . . . . . . Potential Cave-ins 3 | . . . . . 3 . . . . . . . Cave-ins Triggered . | . . . . . . . . . . . . . Exploration Rate (%) 52 | 3 82 66 62 40 85 98 30 18 44 51 89 19 Regions Visited 12 Branch Regions 7 Pre-discovered Areas 5 | . . . 1 . . . . . 2 . 2 . Known Exits Taken 7 | . . 1 . . 1 . 1 1 1 1 1 . Unknown Exits Taken 4 | 1 1 . 1 1 . . . . . . . . Scrap Searched 5 | . . . . 1 . . . . . 2 2 . Spaces Dug 4 | . . . . . . 2 . 2 . . . . Terrain Destroyed 84 | . 13 . . . 64 2 . 4 . . . 1 Melee 3 | . . . . . . 2 . 1 . . . . Projectile 7 | . . . . . 3 . . 3 . . . 1 AOE 74 | . 13 . . . 61 . . . . . . . Terrain Rammed . | . . . . . . . . . . . . . Walls Destroyed . | . . . . . . . . . . . . . Machines Disabled . | . . . . . . . . . . . . . Actions | -11 -10 -10 -10 -9 -8 -8 -8 -7 -7 -7 -7 -7 --------- Run | Yrd Mat Min Exi Min Mat Gar Mat Fac Low Low Zio Dee Total 6886 | 63 677 380 218 132 1300 1048 402 873 308 419 949 117 Wait 237 | 2 42 8 . 5 22 28 16 16 3 17 64 14 Move 5914 | 42 541 331 205 120 1098 874 349 721 288 387 875 83 Hop . | . . . . . . . . . . . . . Pick Up 118 | 11 25 11 1 7 25 6 5 20 1 4 2 . Fast Attach 19 | 1 . . . . 7 2 6 2 . . 1 . Attach 56 | 5 7 3 1 . 24 . 1 8 . 2 . 5 Detach 6 | . . . . . 5 . . 1 . . . . Swap 56 | 2 7 1 2 . 19 2 2 11 4 . 4 2 Drop 78 | . 5 9 9 . 23 6 5 14 1 3 3 . Fire 158 | . 50 17 . . 39 . 11 27 9 1 . 4 Melee 122 | . . . . . 36 18 7 45 2 5 . 9 Ram . | . . . . . . . . . . . . . Kick . | . . . . . . . . . . . . . Crush . | . . . . . . . . . . . . . Escape Stasis 8 | . . . . . . . . 8 . . . . Rewire 112 | . . . . . . 112 . . . . . . Trap 2 | . . . . . 2 . . . . . . . Miscellaneous . | . . . . . . . . . . . . . Route ------- -11/Scrapyard -10/Materials (discovered 4 exits: [*Mat x2] / *Min / [*Sub]) -10/Mines -10/Exiles (discovered 2 exits: *Min x2) -9/Mines -8/Materials (discovered 4 exits: *Fac x3 / Gar) -8/Garrison (discovered 3 exits: *Mat x3) -8/Materials (discovered 2 exits: *Fac x2) -7/Factory (discovered 3 exits: Fac / *Low x2) -7/Lower Caves -7/Lower Caves (discovered 2 exits: *Fac / *Zio) -7/Zion (discovered 2 exits: *Dee / [*Pro]) -7/Deep Caves History --------- Turn | Location | Event 22 | -11/Scrapyard | Discovered new exit (range 16) 59 | -11/Scrapyard | Entered Materials 312 | -10/Materials | Build established: Mutant 378 | -10/Materials | Discovered new exit (range 3) 623 | -10/Materials | Discovered new exit (range 16) 699 | -10/Materials | Discovered new exit (range 16) 768 | -10/Materials | Discovered new exit (range 11) 783 | -10/Materials | Prayed at D.C.S.S. Altar Unit 891 | -10/Materials | Entered Mines 897 | -10/Mines | Found the Drone Emporium 901 | -10/Mines | Found Prototype Device 913 | -10/Mines | Met a Derelict bent on vengeance 972 | -10/Mines | Learned location of 1 exit from Materials 973 | -10/Mines | Assembled infested the area 1061 | -10/Mines | Core integrity restored by X0-1V1 (+60) 1244 | -10/Mines | Melee accuracy permanently improved by X0-1V1 (+8%; -80 max core) 1275 | -10/Mines | Identified exit to Exiles 1275 | -10/Mines | X0-1V1 revealed exit location to -10/Exiles 1324 | -10/Mines | Found a damaged Exp. Sensor Array with a note attached 1326 | -10/Mines | Found Prototype Device 1375 | -10/Mines | Deemed a non-threat by the Exiles lab entrance 1379 | -10/Mines | Entered Exiles 1396 | -10/Exiles | Discovered new exit (range 15) 1407 | -10/Exiles | Met 8R-AWN 1422 | -10/Exiles | Met EX-HEX 1492 | -10/Exiles | Met EX-DEC 1511 | -10/Exiles | Learned location of Zion (-7) 1530 | -10/Exiles | Met EX-BIN 1606 | -10/Exiles | Discovered new exit (range 10) 1614 | -10/Exiles | Entered Mines 1644 | -9/Mines | Found a hidden stash of uninstalled traps 1677 | -9/Mines | Learned Materials terminal intel 1685 | -9/Mines | Received a Rocket Launcher from a helpful Derelict 1731 | -9/Mines | Met a Derelict shopkeep closing up shop 1755 | -9/Mines | Discovered new exit (range 4) 1755 | -9/Mines | X0-1V1 sent you into danger 1758 | -9/Mines | Entered Materials 1758 | -8/Materials | Evolved 4 slots: Propulsion x1, Utility x3 1759 | -8/Materials | Identified exit to Factory 1760 | -8/Materials | Loaded intel: 12 terminal locations 1767 | -8/Materials | Identified Bomb Drone Bay 1768 | -8/Materials | Identified Exp. Sensor Array 1981 | -8/Materials | Discovered exit to Factory (range 8) 2088 | -8/Materials | Build established: Scavenger-Mutant 2219 | -8/Materials | X0-1V1 sent someone to clean up after you 2223 | -8/Materials | Central database locked down 2488 | -8/Materials | X0-1V1 announced a LAN party 2696 | -8/Materials | X0-1V1 redirected Transport squads to designated parking area 2697 | -8/Materials | Core integrity restored by X0-1V1 (+126) 2717 | -8/Materials | Discovered exit to Factory (range 18) 2753 | -8/Materials | Lost 5 allies 2785 | -8/Materials | Lost 8 parts (1p2n2u3w) 2815 | -8/Materials | Lost 11 allies 2948 | -8/Materials | System corruption reached 10% 2985 | -8/Materials | Build established: Mutant 3081 | -8/Materials | Identified exit to Garrison 3082 | -8/Materials | Entered Garrison 3082 | -8/Garrison | Discovered recently destroyed garrison 3196 | -8/Garrison | Ranged accuracy permanently improved by X0-1V1 (+9%; -90 max core) 3211 | -8/Garrison | Garrison Relay disabled 3233 | -8/Garrison | X0-1V1 destroyed Phase Generator 3233 | -8/Garrison | Phase Generator disabled 3471 | -8/Garrison | Garrison Relay disabled 3514 | -8/Garrison | Garrison Relay disabled 3544 | -8/Garrison | Discovered new exit (range 9) 3700 | -8/Garrison | Garrison Relay disabled 3721 | -8/Garrison | Discovered new exit (range 11) 3741 | -8/Garrison | Garrison Relay disabled 3919 | -8/Garrison | Garrison Relay disabled 4019 | -8/Garrison | Discovered new exit (range 14) 4066 | -8/Garrison | Build established: Commander-Mutant 4104 | -8/Garrison | Garrison Relay disabled 4218 | -8/Garrison | Identified exit to Materials 4242 | -8/Garrison | Entered Materials 4242 | -8/Materials | Accompanied by 8 allies 4316 | -8/Materials | Heat dissipation permanently improved by X0-1V1 (+15; -75 max core) 4435 | -8/Materials | X0-1V1 announced a LAN party 4548 | -8/Materials | X0-1V1 revealed exit location to -7/Factory 4562 | -8/Materials | Lost 3 allies 4580 | -8/Materials | Discovered exit to Factory (range 10) 4647 | -8/Materials | Entered Factory 4647 | -7/Factory | Accompanied by 4 allies 4647 | -7/Factory | Evolved 2 slots: Propulsion x1, Utility x1 4703 | -7/Factory | Identified exit to Factory 4703 | -7/Factory | X0-1V1 revealed exit location to -6/Factory 4882 | -7/Factory | Repaired Med. Storage Unit 4899 | -7/Factory | Identified exit to Lower Caves 4941 | -7/Factory | Build established: Scavenger-Mutant 4955 | -7/Factory | X0-1V1 activates XOMVISION 5063 | -7/Factory | X0-1V1 sent you to a vault 5280 | -7/Factory | Lost 4 allies 5290 | -7/Factory | Entered Lower Caves 5321 | -7/Lower Caves | Met a Warlord Commander 5322 | -7/Lower Caves | Learned location of Warlord (-5) 5323 | -7/Lower Caves | Warlord Commander delivered Encrypted Comm Array 5324 | -7/Lower Caves | Found Unknown Device 5390 | -7/Lower Caves | Attracted the attention of an 0b10 checkpoint 5410 | -7/Lower Caves | Identified Encrypted Comm Array 5431 | -7/Lower Caves | X0-1V1 activates XOMVISION 5437 | -7/Lower Caves | Discovered new exit (range 14) 5441 | -7/Lower Caves | Identified exit to Lower Caves 5445 | -7/Lower Caves | Entered another Lower Caves area 5450 | -7/Lower Caves | Discovered exit to Factory (range 19) 5465 | -7/Lower Caves | Spotted B-75 Beast 5487 | -7/Lower Caves | Learned 8 Factory zone layouts 5503 | -7/Lower Caves | Learned Factory interactive machine intel 5503 | -7/Lower Caves | Identified exit to Zion 5503 | -7/Lower Caves | X0-1V1 revealed exit location to -7/Zion 5528 | -7/Lower Caves | X0-1V1 sent allied S-27 Virus (x4) 5554 | -7/Lower Caves | X0-1V1 whisked you away to safety 5574 | -7/Lower Caves | Learned Factory non-interactive machine intel 5584 | -7/Lower Caves | System corruption reached 10% 5638 | -7/Lower Caves | Found Skeleton Box 5652 | -7/Lower Caves | Entered Zion 5657 | -7/Zion | Identified exit to Deep Caves 5696 | -7/Zion | Learned location of Extension (-5) 5698 | -7/Zion | Discovered new exit (range 10) 5709 | -7/Zion | Found Prototype Device 5710 | -7/Zion | Identified Phasing AFG 5768 | -7/Zion | Loaded intel: 4 derelict terminal locations 5833 | -7/Zion | Build established: Mutant 5844 | -7/Zion | Learned Factory garrison access intel 5855 | -7/Zion | Learned location of Quarantine (-3) 5916 | -7/Zion | Met Imprinter 5923 | -7/Zion | Imprinted 5925 | -7/Zion | Declared Zion's savior 6040 | -7/Zion | Remotely autohacked Sealed Blast Doors 6051 | -7/Zion | Remotely autohacked Sealed Blast Doors 6051 | -7/Zion | Remotely autohacked Sealed Blast Doors 6051 | -7/Zion | Remotely autohacked Sealed Blast Doors 6057 | -7/Zion | Saw the warning signs outside the Deep Caves entrance 6121 | -7/Zion | Entered Deep Caves 6121 | -7/Deep Caves | Accompanied by 4 allies 6172 | -7/Deep Caves | Attacked by Z-Imprinter 6186 | -7/Deep Caves | Core integrity fell below 50% 6208 | -7/Deep Caves | Core integrity fell below 20% 6211 | -7/Deep Caves | Destroyed by KU-HL4(z) with Zionite Laser-S Last Messages --------------- Z-Imprinter: GET AWAY FROM HERE! I've worked too hard for our future just to have you ruin everything! 06175_ Imp. Medium Armor Plating destroyed. 06175_ Wheel+ destroyed. 06189_ Lgt. Fission Core destroyed. 06189_ Adv. Melee Analysis Suite destroyed. 06192_ Arm. Huge Wheel destroyed. 06199_ Bore Cannon destroyed. 06199_ Imp. Shield Generator destroyed. 06200_ Rocket Booster destroyed. 06201_ X0-1V1 is amused. 06205_ Hvy. Plasma Cannon destroyed. 06208_ Spear+ destroyed. 06210_ Z-Imprinter suffers critical hit (Smash). 06210_ Destroyed Prototype Hover Unit. 06210_ Z-Imprinter system corrupted by crushing effect. 06210_ Z-Imprinter knocked back. 06211_ X0-1V1 chuckles heartily! Map ----- +----------------------------------------------------+ | | | | | | | | | | | | | | | | | | | | | | | | | | | | | | | | | ?????????????????????????????????????????????????? | | ????????????????????????????????????????????????## | | ??????????? ????????###???????????????????###### | | ????????? ??????#;;??????????????????## ## | | ????????? ;###?# ;##????######??????# ## | | ???????? ;; # ;#??### ##?????# ## | | ???????? ;#### #?????# ##? | | ???????? #?????# #?? | | ???????? #??????# ##? | | ???????? @ ##??????# ## | | ????????? #???????# | | ?????????""" I ##??????# | | ???????????" z######## | | ???????????" z | | ???????????" | | ??????????? ### | | ???????????" ##########?? | | ???????????? #;#??????????? | | ???????????? ##????????????? | | ????????????? #?????????????? | | ?????????????? #?????????????# | | ???????????????? ????????????## | | ?????????????????? ????????????# | | ????????????????????? ???????????## | | ??????????????????????? #????????#### | | ???????????????????????? #??????### | | ????????????????????????? ??###### | | ??????????????????????????? ?## | | ????????????????????????????? ? ?# | | ????????????????????????????????? ??#= = ## | | ????????????????????????????????????## ! | | ?????????????????????????????????????##= ## | | ??????????????????????????????????????#???### | | ????????????????????????????????????????????## | +----------------------------------------------------+ Best States ------------- Heat Dissipation 139 Energy Generation 38 Energy Capacity 1360 Matter Stores 658 Matter Capacity 900 Sight Range 22 Robot Scan Range 20 Terrain Scan Density 10 Armor Coverage 600 Resistance: KI 20 Melee Speed Boost 20 Evasion (%) 52 Melee Accuracy 8 Item Schematics ----------------- Enh. Autogun | -8/Materials | Scanalyzed Hacking Suite | -8/Materials | Scanalyzed Imp. Thermal Generator | -7/Zion | Archive Core Analyzer | -7/Zion | Archive Hvy. Flak Cannon | -7/Zion | Archive Hvy. Laser | -7/Zion | Archive Lrn. Proton Cannon | -7/Zion | Archive Corruption Screen | -7/Zion | Archive Lrn. Missile Launcher | -7/Zion | Archive Force Field | -7/Zion | Archive Armor Integrity Analyzer | -7/Zion | Archive Xenon Bombardment Thruster | -7/Zion | Archive Lyr. Medium Armor Plating | -7/Zion | Archive Adv. Terrain Scan Processor | -7/Zion | Archive Adv. Melee Analysis Suite | -7/Zion | Archive Hvy. Missile Launcher | -7/Zion | Archive Imp. Dynamic Insulation System | -7/Zion | Archive Robot Schematics ------------------ W-25 Informer | -7/Zion | Archive I-25 Savior | -7/Zion | Archive B-48 Gladiator | -7/Zion | Archive Fabricated ------------ Nothing Repaired ---------- Med. Storage Unit | 12% | -7/Factory Studied --------- Spear | -8/Materials | Hacked Wheel | -8/Materials | Hacked Imp. Ion Engine | -8/Materials | Hacked Alien Tech Used ----------------- None Achievements -------------- None Challenges ------------ None Game ------ Seed ScatterExperimentalWings Manual? 0 Play Time 01:18:37 Cumulative 335.1 hours Start 2026.07.23 @ 21:53:30 End 2026.08.06 @ 20:59:06 Sessions 3 Manual Loads 0 Difficulty Rogue Special Mode None Game No. 257 Rogue 248 Adventurer 9 Explorer 0 Win Type - Total 4 Types 3/0/0/1/0/0/0/0/0/0 Lore% 87 Gallery% 72 Achievement% 51 Wizard Run 0 Options --------- Layout 1 ASCII 0 Keyboard 0 Movement Numpad Keybinds 0 Fullscreen 1 Font 24/Smallcaps Map View 50x35 Zoom Use 0% Tactical HUD 1 Map Filters NONE Filters NONE Steam 1 RUN: a4a54892-80eb-436e-b2b7-64225e84f7a2